Workbook

Sheet Lookup
A1: Sale Item | B1: Cost Per Unit
A2: Apples | B2: 0.4
A3: Oranges | B3: 0.3
A4: Pears | B4: 0.6
A5: Lemons | B5: 0.45
A6: Potato | B6: 0.12
A7: Leeks | B7: 0.15

Sheet Data
A1: Category | B1: Year | C1: Type | D1: Price Per Unit | E1: Qty | F1: Amt.
A2: Apples | B2: 2015-16 | C2: Fruit | D2: =VLOOKUP(A2,Lookup!$A$2:$B$7,2,0) -> 0.4 | E2: 7 | F2: =E2*D2 -> 2.8
A3: Oranges | B3: 2015-16 | C3: Fruit | D3: =VLOOKUP(A3,Lookup!$A$2:$B$7,2,0) -> 0.3 | E3: 14 | F3: =E3*D3 -> 4.2
A4: Pears | B4: 2015-16 | C4: Fruit | D4: =VLOOKUP(A4,Lookup!$A$2:$B$7,2,0) -> 0.6 | E4: 9 | F4: 5.4 | K4: Category | L4: Year | M4: Type | N4: Price Per Unit | O4: Qty | P4: Amt. | T4: Category | U4: Amt.
A5: Apples | B5: 2015-16 | C5: Fruit | D5: =VLOOKUP(A5,Lookup!$A$2:$B$7,2,0) -> 0.4 | E5: 11 | F5: 4.4
A6: Pears | B6: 2015-16 | C6: Fruit | D6: =VLOOKUP(A6,Lookup!$A$2:$B$7,2,0) -> 0.6 | E6: 8 | F6: 4.8
A7: Oranges | B7: 2015-16 | C7: Fruit | D7: =VLOOKUP(A7,Lookup!$A$2:$B$7,2,0) -> 0.3 | E7: 10 | F7: 3
A8: Apples | B8: 2015-16 | C8: Fruit | D8: =VLOOKUP(A8,Lookup!$A$2:$B$7,2,0) -> 0.4 | E8: 10 | F8: 4
A9: Oranges | B9: 2015-16 | C9: Fruit | D9: =VLOOKUP(A9,Lookup!$A$2:$B$7,2,0) -> 0.3 | E9: 5 | F9: 1.5
A10: Pears | B10: 2015-16 | C10: Fruit | D10: =VLOOKUP(A10,Lookup!$A$2:$B$7,2,0) -> 0.6 | E10: 8 | F10: 4.8
A11: Apples | B11: 2015-16 | C11: Fruit | D11: =VLOOKUP(A11,Lookup!$A$2:$B$7,2,0) -> 0.4 | E11: 6 | F11: 2.4
A12: Pears | B12: 2015-16 | C12: Fruit | D12: =VLOOKUP(A12,Lookup!$A$2:$B$7,2,0) -> 0.6 | E12: 7 | F12: 4.2
A13: Oranges | B13: 2015-16 | C13: Fruit | D13: =VLOOKUP(A13,Lookup!$A$2:$B$7,2,0) -> 0.3 | E13: 10 | F13: 3
A14: Apples | B14: 2015-16 | C14: Fruit | D14: =VLOOKUP(A14,Lookup!$A$2:$B$7,2,0) -> 0.4 | E14: 15 | F14: 6
A15: Oranges | B15: 2015-16 | C15: Fruit | D15: =VLOOKUP(A15,Lookup!$A$2:$B$7,2,0) -> 0.3 | E15: 11 | F15: 3.3
A16: Pears | B16: 2015-16 | C16: Fruit | D16: =VLOOKUP(A16,Lookup!$A$2:$B$7,2,0) -> 0.6 | E16: 14 | F16: 8.4
A17: Apples | B17: 2015-16 | C17: Fruit | D17: =VLOOKUP(A17,Lookup!$A$2:$B$7,2,0) -> 0.4 | E17: 7 | F17: 2.8
A18: Pears | B18: 2015-16 | C18: Fruit | D18: =VLOOKUP(A18,Lookup!$A$2:$B$7,2,0) -> 0.6 | E18: 15 | F18: 9
A19: Oranges | B19: 2015-16 | C19: Fruit | D19: =VLOOKUP(A19,Lookup!$A$2:$B$7,2,0) -> 0.3 | E19: 14 | F19: 4.2
A20: Apples | B20: 2015-16 | C20: Fruit | D20: =VLOOKUP(A20,Lookup!$A$2:$B$7,2,0) -> 0.4 | E20: 7 | F20: 2.8
A21: Oranges | B21: 2015-16 | C21: Fruit | D21: =VLOOKUP(A21,Lookup!$A$2:$B$7,2,0) -> 0.3 | E21: 8 | F21: 2.4
A22: Pears | B22: 2015-16 | C22: Fruit | D22: =VLOOKUP(A22,Lookup!$A$2:$B$7,2,0) -> 0.6 | E22: 9 | F22: 5.4
A23: Apples | B23: 2015-16 | C23: Fruit | D23: =VLOOKUP(A23,Lookup!$A$2:$B$7,2,0) -> 0.4 | E23: 10 | F23: 4
A24: Pears | B24: 2015-16 | C24: Fruit | D24: =VLOOKUP(A24,Lookup!$A$2:$B$7,2,0) -> 0.6 | E24: 8 | F24: 4.8
A25: Oranges | B25: 2015-16 | C25: Fruit | D25: =VLOOKUP(A25,Lookup!$A$2:$B$7,2,0) -> 0.3 | E25: 6 | F25: 1.8
A26: Apples | B26: 2015-16 | C26: Fruit | D26: =VLOOKUP(A26,Lookup!$A$2:$B$7,2,0) -> 0.4 | E26: 9 | F26: 3.6
A27: Oranges | B27: 2015-16 | C27: Fruit | D27: =VLOOKUP(A27,Lookup!$A$2:$B$7,2,0) -> 0.3 | E27: 11 | F27: 3.3
A28: Pears | B28: 2015-16 | C28: Fruit | D28: =VLOOKUP(A28,Lookup!$A$2:$B$7,2,0) -> 0.6 | E28: 15 | F28: 9
A29: Apples | B29: 2015-16 | C29: Fruit | D29: =VLOOKUP(A29,Lookup!$A$2:$B$7,2,0) -> 0.4 | E29: 8 | F29: 3.2
A30: Pears | B30: 2015-16 | C30: Fruit | D30: =VLOOKUP(A30,Lookup!$A$2:$B$7,2,0) -> 0.6 | E30: 6 | F30: 3.6
A31: Oranges | B31: 2015-16 | C31: Fruit | D31: =VLOOKUP(A31,Lookup!$A$2:$B$7,2,0) -> 0.3 | E31: 5 | F31: 1.5
A32: Apples | B32: 2015-16 | C32: Fruit | D32: =VLOOKUP(A32,Lookup!$A$2:$B$7,2,0) -> 0.4 | E32: 5 | F32: 2
A33: Oranges | B33: 2015-16 | C33: Fruit | D33: =VLOOKUP(A33,Lookup!$A$2:$B$7,2,0) -> 0.3 | E33: 11 | F33: 3.3
A34: Pears | B34: 2015-16 | C34: Fruit | D34: =VLOOKUP(A34,Lookup!$A$2:$B$7,2,0) -> 0.6 | E34: 12 | F34: 7.2
A35: Apples | B35: 2015-16 | C35: Fruit | D35: =VLOOKUP(A35,Lookup!$A$2:$B$7,2,0) -> 0.4 | E35: 5 | F35: 2
A36: Pears | B36: 2015-16 | C36: Fruit | D36: =VLOOKUP(A36,Lookup!$A$2:$B$7,2,0) -> 0.6 | E36: 8 | F36: 4.8
A37: Oranges | B37: 2015-16 | C37: Fruit | D37: =VLOOKUP(A37,Lookup!$A$2:$B$7,2,0) -> 0.3 | E37: 7 | F37: 2.1
A38: Apples | B38: 2015-16 | C38: Fruit | D38: =VLOOKUP(A38,Lookup!$A$2:$B$7,2,0) -> 0.4 | E38: 12 | F38: 4.8
A39: Oranges | B39: 2015-16 | C39: Fruit | D39: =VLOOKUP(A39,Lookup!$A$2:$B$7,2,0) -> 0.3 | E39: 7 | F39: 2.1
A40: Pears | B40: 2015-16 | C40: Fruit | D40: =VLOOKUP(A40,Lookup!$A$2:$B$7,2,0) -> 0.6 | E40: 11 | F40: 6.6
A41: Apples | B41: 2015-16 | C41: Fruit | D41: =VLOOKUP(A41,Lookup!$A$2:$B$7,2,0) -> 0.4 | E41: 13 | F41: 5.2
A42: Pears | B42: 2015-16 | C42: Fruit | D42: =VLOOKUP(A42,Lookup!$A$2:$B$7,2,0) -> 0.6 | E42: 12 | F42: 7.2
A43: Oranges | B43: 2015-16 | C43: Fruit | D43: =VLOOKUP(A43,Lookup!$A$2:$B$7,2,0) -> 0.3 | E43: 11 | F43: 3.3
A44: Apples | B44: 2015-16 | C44: Fruit | D44: =VLOOKUP(A44,Lookup!$A$2:$B$7,2,0) -> 0.4 | E44: 11 | F44: 4.4
A45: Oranges | B45: 2015-16 | C45: Fruit | D45: =VLOOKUP(A45,Lookup!$A$2:$B$7,2,0) -> 0.3 | E45: 7 | F45: 2.1
A46: Pears | B46: 2015-16 | C46: Fruit | D46: =VLOOKUP(A46,Lookup!$A$2:$B$7,2,0) -> 0.6 | E46: 15 | F46: 9
A47: Apples | B47: 2015-16 | C47: Fruit | D47: =VLOOKUP(A47,Lookup!$A$2:$B$7,2,0) -> 0.4 | E47: 7 | F47: 2.8
A48: Pears | B48: 2015-16 | C48: Fruit | D48: =VLOOKUP(A48,Lookup!$A$2:$B$7,2,0) -> 0.6 | E48: 15 | F48: 9
A49: Oranges | B49: 2015-16 | C49: Fruit | D49: =VLOOKUP(A49,Lookup!$A$2:$B$7,2,0) -> 0.3 | E49: 6 | F49: 1.8
A50: Apples | B50: 2015-16 | C50: Fruit | D50: =VLOOKUP(A50,Lookup!$A$2:$B$7,2,0) -> 0.4 | E50: 8 | F50: 3.2
A51: Oranges | B51: 2015-16 | C51: Fruit | D51: =VLOOKUP(A51,Lookup!$A$2:$B$7,2,0) -> 0.3 | E51: 8 | F51: 2.4
A52: Pears | B52: 2015-16 | C52: Fruit | D52: =VLOOKUP(A52,Lookup!$A$2:$B$7,2,0) -> 0.6 | E52: 14 | F52: 8.4
A53: Apples | B53: 2015-16 | C53: Fruit | D53: =VLOOKUP(A53,Lookup!$A$2:$B$7,2,0) -> 0.4 | E53: 8 | F53: 3.2
A54: Pears | B54: 2015-16 | C54: Fruit | D54: =VLOOKUP(A54,Lookup!$A$2:$B$7,2,0) -> 0.6 | E54: 14 | F54: 8.4
A55: Oranges | B55: 2015-16 | C55: Fruit | D55: =VLOOKUP(A55,Lookup!$A$2:$B$7,2,0) -> 0.3 | E55: 5 | F55: 1.5
A56: Apples | B56: 2015-16 | C56: Fruit | D56: =VLOOKUP(A56,Lookup!$A$2:$B$7,2,0) -> 0.4 | E56: 5 | F56: 2
A57: Oranges | B57: 2015-16 | C57: Fruit | D57: =VLOOKUP(A57,Lookup!$A$2:$B$7,2,0) -> 0.3 | E57: 8 | F57: 2.4
A58: Pears | B58: 2015-16 | C58: Fruit | D58: =VLOOKUP(A58,Lookup!$A$2:$B$7,2,0) -> 0.6 | E58: 5 | F58: 3
A59: Apples | B59: 2015-16 | C59: Fruit | D59: =VLOOKUP(A59,Lookup!$A$2:$B$7,2,0) -> 0.4 | E59: 14 | F59: 5.6
A60: Pears | B60: 2015-16 | C60: Fruit | D60: =VLOOKUP(A60,Lookup!$A$2:$B$7,2,0) -> 0.6 | E60: 15 | F60: 9
A61: Oranges | B61: 2015-16 | C61: Fruit | D61: =VLOOKUP(A61,Lookup!$A$2:$B$7,2,0) -> 0.3 | E61: 10 | F61: 3
A62: Apples | B62: 2015-16 | C62: Fruit | D62: =VLOOKUP(A62,Lookup!$A$2:$B$7,2,0) -> 0.4 | E62: 11 | F62: 4.4
A63: Oranges | B63: 2015-16 | C63: Fruit | D63: =VLOOKUP(A63,Lookup!$A$2:$B$7,2,0) -> 0.3 | E63: 12 | F63: 3.6
A64: Pears | B64: 2015-16 | C64: Fruit | D64: =VLOOKUP(A64,Lookup!$A$2:$B$7,2,0) -> 0.6 | E64: 6 | F64: 3.6
A65: Apples | B65: 2015-16 | C65: Fruit | D65: =VLOOKUP(A65,Lookup!$A$2:$B$7,2,0) -> 0.4 | E65: 4 | F65: 1.6
A66: Pears | B66: 2015-16 | C66: Fruit | D66: =VLOOKUP(A66,Lookup!$A$2:$B$7,2,0) -> 0.6 | E66: 10 | F66: 6
A67: Oranges | B67: 2015-16 | C67: Fruit | D67: =VLOOKUP(A67,Lookup!$A$2:$B$7,2,0) -> 0.3 | E67: 9 | F67: =E67*D67 -> 2.7
A68: Apples | B68: 2015-16 | C68: Fruit | D68: =VLOOKUP(A68,Lookup!$A$2:$B$7,2,0) -> 0.4 | E68: 15 | F68: 6
A69: Oranges | B69: 2015-16 | C69: Fruit | D69: =VLOOKUP(A69,Lookup!$A$2:$B$7,2,0) -> 0.3 | E69: 8 | F69: 2.4
A70: Pears | B70: 2015-16 | C70: Fruit | D70: =VLOOKUP(A70,Lookup!$A$2:$B$7,2,0) -> 0.6 | E70: 5 | F70: 3
A71: Apples | B71: 2015-16 | C71: Fruit | D71: =VLOOKUP(A71,Lookup!$A$2:$B$7,2,0) -> 0.4 | E71: 12 | F71: 4.8
A72: Pears | B72: 2015-16 | C72: Fruit | D72: =VLOOKUP(A72,Lookup!$A$2:$B$7,2,0) -> 0.6 | E72: 7 | F72: 4.2
A73: Oranges | B73: 2015-16 | C73: Fruit | D73: =VLOOKUP(A73,Lookup!$A$2:$B$7,2,0) -> 0.3 | E73: 9 | F73: 2.7
A74: Apples | B74: 2015-16 | C74: Fruit | D74: =VLOOKUP(A74,Lookup!$A$2:$B$7,2,0) -> 0.4 | E74: 15 | F74: 6
A75: Oranges | B75: 2015-16 | C75: Fruit | D75: =VLOOKUP(A75,Lookup!$A$2:$B$7,2,0) -> 0.3 | E75: 13 | F75: 3.9
A76: Pears | B76: 2015-16 | C76: Fruit | D76: =VLOOKUP(A76,Lookup!$A$2:$B$7,2,0) -> 0.6 | E76: 6 | F76: 3.6
A77: Apples | B77: 2015-16 | C77: Fruit | D77: =VLOOKUP(A77,Lookup!$A$2:$B$7,2,0) -> 0.4 | E77: 14 | F77: 5.6
A78: Pears | B78: 2015-16 | C78: Fruit | D78: =VLOOKUP(A78,Lookup!$A$2:$B$7,2,0) -> 0.6 | E78: 10 | F78: 6
A79: Oranges | B79: 2015-16 | C79: Fruit | D79: =VLOOKUP(A79,Lookup!$A$2:$B$7,2,0) -> 0.3 | E79: 11 | F79: 3.3
A80: Apples | B80: 2015-16 | C80: Fruit | D80: =VLOOKUP(A80,Lookup!$A$2:$B$7,2,0) -> 0.4 | E80: 4 | F80: 1.6
A81: Oranges | B81: 2015-16 | C81: Fruit | D81: =VLOOKUP(A81,Lookup!$A$2:$B$7,2,0) -> 0.3 | E81: 12 | F81: 3.6
A82: Pears | B82: 2015-16 | C82: Fruit | D82: =VLOOKUP(A82,Lookup!$A$2:$B$7,2,0) -> 0.6 | E82: 8 | F82: 4.8
A83: Apples | B83: 2015-16 | C83: Fruit | D83: =VLOOKUP(A83,Lookup!$A$2:$B$7,2,0) -> 0.4 | E83: 15 | F83: 6
A84: Pears | B84: 2015-16 | C84: Fruit | D84: =VLOOKUP(A84,Lookup!$A$2:$B$7,2,0) -> 0.6 | E84: 5 | F84: 3
A85: Oranges | B85: 2015-16 | C85: Fruit | D85: =VLOOKUP(A85,Lookup!$A$2:$B$7,2,0) -> 0.3 | E85: 6 | F85: 1.8
A86: Apples | B86: 2015-16 | C86: Fruit | D86: =VLOOKUP(A86,Lookup!$A$2:$B$7,2,0) -> 0.4 | E86: 10 | F86: 4
A87: Oranges | B87: 2015-16 | C87: Fruit | D87: =VLOOKUP(A87,Lookup!$A$2:$B$7,2,0) -> 0.3 | E87: 5 | F87: 1.5
A88: Pears | B88: 2015-16 | C88: Fruit | D88: =VLOOKUP(A88,Lookup!$A$2:$B$7,2,0) -> 0.6 | E88: 13 | F88: 7.8
A89: Apples | B89: 2015-16 | C89: Fruit | D89: =VLOOKUP(A89,Lookup!$A$2:$B$7,2,0) -> 0.4 | E89: 10 | F89: 4
A90: Pears | B90: 2015-16 | C90: Fruit | D90: =VLOOKUP(A90,Lookup!$A$2:$B$7,2,0) -> 0.6 | E90: 9 | F90: 5.4
A91: Oranges | B91: 2015-16 | C91: Fruit | D91: =VLOOKUP(A91,Lookup!$A$2:$B$7,2,0) -> 0.3 | E91: 11 | F91: 3.3
A92: Apples | B92: 2015-16 | C92: Fruit | D92: =VLOOKUP(A92,Lookup!$A$2:$B$7,2,0) -> 0.4 | E92: 4 | F92: 1.6
A93: Oranges | B93: 2015-16 | C93: Fruit | D93: =VLOOKUP(A93,Lookup!$A$2:$B$7,2,0) -> 0.3 | E93: 14 | F93: 4.2
A94: Pears | B94: 2015-16 | C94: Fruit | D94: =VLOOKUP(A94,Lookup!$A$2:$B$7,2,0) -> 0.6 | E94: 14 | F94: 8.4
A95: Apples | B95: 2015-16 | C95: Fruit | D95: =VLOOKUP(A95,Lookup!$A$2:$B$7,2,0) -> 0.4 | E95: 5 | F95: 2
A96: Pears | B96: 2015-16 | C96: Fruit | D96: =VLOOKUP(A96,Lookup!$A$2:$B$7,2,0) -> 0.6 | E96: 9 | F96: 5.4
A97: Oranges | B97: 2015-16 | C97: Fruit | D97: =VLOOKUP(A97,Lookup!$A$2:$B$7,2,0) -> 0.3 | E97: 8 | F97: 2.4
A98: Apples | B98: 2015-16 | C98: Fruit | D98: =VLOOKUP(A98,Lookup!$A$2:$B$7,2,0) -> 0.4 | E98: 5 | F98: 2
A99: Oranges | B99: 2015-16 | C99: Fruit | D99: =VLOOKUP(A99,Lookup!$A$2:$B$7,2,0) -> 0.3 | E99: 6 | F99: 1.8
A100: Pears | B100: 2015-16 | C100: Fruit | D100: =VLOOKUP(A100,Lookup!$A$2:$B$7,2,0) -> 0.6 | E100: 4 | F100: 2.4
A101: Apples | B101: 2015-16 | C101: Fruit | D101: =VLOOKUP(A101,Lookup!$A$2:$B$7,2,0) -> 0.4 | E101: 4 | F101: 1.6
A102: Pears | B102: 2015-16 | C102: Fruit | D102: =VLOOKUP(A102,Lookup!$A$2:$B$7,2,0) -> 0.6 | E102: 5 | F102: 3
A103: Oranges | B103: 2015-16 | C103: Fruit | D103: =VLOOKUP(A103,Lookup!$A$2:$B$7,2,0) -> 0.3 | E103: 11 | F103: 3.3
A104: Apples | B104: 2015-16 | C104: Fruit | D104: =VLOOKUP(A104,Lookup!$A$2:$B$7,2,0) -> 0.4 | E104: 6 | F104: 2.4
A105: Oranges | B105: 2015-16 | C105: Fruit | D105: =VLOOKUP(A105,Lookup!$A$2:$B$7,2,0) -> 0.3 | E105: 8 | F105: 2.4
A106: Pears | B106: 2015-16 | C106: Fruit | D106: =VLOOKUP(A106,Lookup!$A$2:$B$7,2,0) -> 0.6 | E106: 11 | F106: 6.6
A107: Apples | B107: 2015-16 | C107: Fruit | D107: =VLOOKUP(A107,Lookup!$A$2:$B$7,2,0) -> 0.4 | E107: 12 | F107: 4.8
A108: Pears | B108: 2015-16 | C108: Fruit | D108: =VLOOKUP(A108,Lookup!$A$2:$B$7,2,0) -> 0.6 | E108: 4 | F108: 2.4
A109: Oranges | B109: 2015-16 | C109: Fruit | D109: =VLOOKUP(A109,Lookup!$A$2:$B$7,2,0) -> 0.3 | E109: 11 | F109: 3.3
A110: Apples | B110: 2015-16 | C110: Fruit | D110: =VLOOKUP(A110,Lookup!$A$2:$B$7,2,0) -> 0.4 | E110: 12 | F110: 4.8
A111: Oranges | B111: 2015-16 | C111: Fruit | D111: =VLOOKUP(A111,Lookup!$A$2:$B$7,2,0) -> 0.3 | E111: 14 | F111: 4.2
A112: Pears | B112: 2015-16 | C112: Fruit | D112: =VLOOKUP(A112,Lookup!$A$2:$B$7,2,0) -> 0.6 | E112: 11 | F112: 6.6
A113: Apples | B113: 2015-16 | C113: Fruit | D113: =VLOOKUP(A113,Lookup!$A$2:$B$7,2,0) -> 0.4 | E113: 12 | F113: 4.8
A114: Pears | B114: 2015-16 | C114: Fruit | D114: =VLOOKUP(A114,Lookup!$A$2:$B$7,2,0) -> 0.6 | E114: 9 | F114: 5.4
A115: Oranges | B115: 2015-16 | C115: Fruit | D115: =VLOOKUP(A115,Lookup!$A$2:$B$7,2,0) -> 0.3 | E115: 8 | F115: 2.4
A116: Apples | B116: 2015-16 | C116: Fruit | D116: =VLOOKUP(A116,Lookup!$A$2:$B$7,2,0) -> 0.4 | E116: 12 | F116: 4.8
A117: Oranges | B117: 2015-16 | C117: Fruit | D117: =VLOOKUP(A117,Lookup!$A$2:$B$7,2,0) -> 0.3 | E117: 11 | F117: 3.3
A118: Pears | B118: 2015-16 | C118: Fruit | D118: =VLOOKUP(A118,Lookup!$A$2:$B$7,2,0) -> 0.6 | E118: 8 | F118: 4.8
A119: Apples | B119: 2015-16 | C119: Fruit | D119: =VLOOKUP(A119,Lookup!$A$2:$B$7,2,0) -> 0.4 | E119: 5 | F119: 2
A120: Pears | B120: 2015-16 | C120: Fruit | D120: =VLOOKUP(A120,Lookup!$A$2:$B$7,2,0) -> 0.6 | E120: 14 | F120: 8.4
A121: Oranges | B121: 2015-16 | C121: Fruit | D121: =VLOOKUP(A121,Lookup!$A$2:$B$7,2,0) -> 0.3 | E121: 6 | F121: 1.8
A122: Apples | B122: 2015-16 | C122: Fruit | D122: =VLOOKUP(A122,Lookup!$A$2:$B$7,2,0) -> 0.4 | E122: 15 | F122: 6
A123: Oranges | B123: 2015-16 | C123: Fruit | D123: =VLOOKUP(A123,Lookup!$A$2:$B$7,2,0) -> 0.3 | E123: 4 | F123: 1.2
A124: Pears | B124: 2015-16 | C124: Fruit | D124: =VLOOKUP(A124,Lookup!$A$2:$B$7,2,0) -> 0.6 | E124: 12 | F124: 7.2
A125: Apples | B125: 2015-16 | C125: Fruit | D125: =VLOOKUP(A125,Lookup!$A$2:$B$7,2,0) -> 0.4 | E125: 10 | F125: 4
A126: Pears | B126: 2015-16 | C126: Fruit | D126: =VLOOKUP(A126,Lookup!$A$2:$B$7,2,0) -> 0.6 | E126: 6 | F126: 3.6
A127: Oranges | B127: 2015-16 | C127: Fruit | D127: =VLOOKUP(A127,Lookup!$A$2:$B$7,2,0) -> 0.3 | E127: 6 | F127: 1.8
A128: Lemons | B128: 2015-16 | C128: Fruit | D128: =VLOOKUP(A128,Lookup!$A$2:$B$7,2,0) -> 0.45 | E128: 10 | F128: 4.5
A129: Potato | B129: 2015-16 | C129: Fruit | D129: =VLOOKUP(A129,Lookup!$A$2:$B$7,2,0) -> 0.12 | E129: 10 | F129: 1.2
A130: Leeks | B130: 2015-16 | C130: Fruit | D130: =VLOOKUP(A130,Lookup!$A$2:$B$7,2,0) -> 0.15 | E130: 11 | F130: 1.65
A131: Lemons | B131: 2015-16 | C131: Fruit | D131: =VLOOKUP(A131,Lookup!$A$2:$B$7,2,0) -> 0.45 | E131: 10 | F131: =E131*D131 -> 4.5
A132: Leeks | B132: 2015-16 | C132: Fruit | D132: =VLOOKUP(A132,Lookup!$A$2:$B$7,2,0) -> 0.15 | E132: 12 | F132: 1.8
A133: Potato | B133: 2015-16 | C133: Fruit | D133: =VLOOKUP(A133,Lookup!$A$2:$B$7,2,0) -> 0.12 | E133: 4 | F133: 0.48
A134: Lemons | B134: 2015-16 | C134: Fruit | D134: =VLOOKUP(A134,Lookup!$A$2:$B$7,2,0) -> 0.45 | E134: 4 | F134: 1.8
A135: Potato | B135: 2015-16 | C135: Fruit | D135: =VLOOKUP(A135,Lookup!$A$2:$B$7,2,0) -> 0.12 | E135: 13 | F135: 1.56
A136: Leeks | B136: 2015-16 | C136: Fruit | D136: =VLOOKUP(A136,Lookup!$A$2:$B$7,2,0) -> 0.15 | E136: 8 | F136: 1.2
A137: Lemons | B137: 2015-16 | C137: Fruit | D137: =VLOOKUP(A137,Lookup!$A$2:$B$7,2,0) -> 0.45 | E137: 5 | F137: 2.25
A138: Leeks | B138: 2015-16 | C138: Fruit | D138: =VLOOKUP(A138,Lookup!$A$2:$B$7,2,0) -> 0.15 | E138: 11 | F138: 1.65
A139: Potato | B139: 2015-16 | C139: Fruit | D139: =VLOOKUP(A139,Lookup!$A$2:$B$7,2,0) -> 0.12 | E139: 7 | F139: 0.84
A140: Lemons | B140: 2015-16 | C140: Fruit | D140: =VLOOKUP(A140,Lookup!$A$2:$B$7,2,0) -> 0.45 | E140: 13 | F140: 5.85
A141: Potato | B141: 2015-16 | C141: Fruit | D141: =VLOOKUP(A141,Lookup!$A$2:$B$7,2,0) -> 0.12 | E141: 15 | F141: 1.8
A142: Leeks | B142: 2015-16 | C142: Fruit | D142: =VLOOKUP(A142,Lookup!$A$2:$B$7,2,0) -> 0.15 | E142: 7 | F142: 1.05
A143: Lemons | B143: 2015-16 | C143: Fruit | D143: =VLOOKUP(A143,Lookup!$A$2:$B$7,2,0) -> 0.45 | E143: 10 | F143: 4.5
A144: Leeks | B144: 2015-16 | C144: Fruit | D144: =VLOOKUP(A144,Lookup!$A$2:$B$7,2,0) -> 0.15 | E144: 8 | F144: 1.2
A145: Potato | B145: 2015-16 | C145: Fruit | D145: =VLOOKUP(A145,Lookup!$A$2:$B$7,2,0) -> 0.12 | E145: 9 | F145: 1.08
A146: Lemons | B146: 2015-16 | C146: Fruit | D146: =VLOOKUP(A146,Lookup!$A$2:$B$7,2,0) -> 0.45 | E146: 13 | F146: 5.85
A147: Potato | B147: 2015-16 | C147: Fruit | D147: =VLOOKUP(A147,Lookup!$A$2:$B$7,2,0) -> 0.12 | E147: 11 | F147: 1.32
A148: Leeks | B148: 2015-16 | C148: Fruit | D148: =VLOOKUP(A148,Lookup!$A$2:$B$7,2,0) -> 0.15 | E148: 5 | F148: 0.75
A149: Lemons | B149: 2015-16 | C149: Fruit | D149: =VLOOKUP(A149,Lookup!$A$2:$B$7,2,0) -> 0.45 | E149: 10 | F149: 4.5
A150: Leeks | B150: 2015-16 | C150: Fruit | D150: =VLOOKUP(A150,Lookup!$A$2:$B$7,2,0) -> 0.15 | E150: 5 | F150: 0.75
A151: Potato | B151: 2015-16 | C151: Fruit | D151: =VLOOKUP(A151,Lookup!$A$2:$B$7,2,0) -> 0.12 | E151: 14 | F151: 1.68
A152: Lemons | B152: 2015-16 | C152: Fruit | D152: =VLOOKUP(A152,Lookup!$A$2:$B$7,2,0) -> 0.45 | E152: 6 | F152: 2.7
A153: Potato | B153: 2015-16 | C153: Fruit | D153: =VLOOKUP(A153,Lookup!$A$2:$B$7,2,0) -> 0.12 | E153: 7 | F153: 0.84
A154: Leeks | B154: 2015-16 | C154: Fruit | D154: =VLOOKUP(A154,Lookup!$A$2:$B$7,2,0) -> 0.15 | E154: 15 | F154: 2.25
A155: Lemons | B155: 2015-16 | C155: Fruit | D155: =VLOOKUP(A155,Lookup!$A$2:$B$7,2,0) -> 0.45 | E155: 7 | F155: 3.15
A156: Leeks | B156: 2015-16 | C156: Fruit | D156: =VLOOKUP(A156,Lookup!$A$2:$B$7,2,0) -> 0.15 | E156: 13 | F156: 1.95
A157: Potato | B157: 2015-16 | C157: Fruit | D157: =VLOOKUP(A157,Lookup!$A$2:$B$7,2,0) -> 0.12 | E157: 10 | F157: 1.2
A158: Lemons | B158: 2015-16 | C158: Fruit | D158: =VLOOKUP(A158,Lookup!$A$2:$B$7,2,0) -> 0.45 | E158: 11 | F158: 4.95
A159: Potato | B159: 2015-16 | C159: Fruit | D159: =VLOOKUP(A159,Lookup!$A$2:$B$7,2,0) -> 0.12 | E159: 11 | F159: 1.32
A160: Leeks | B160: 2015-16 | C160: Fruit | D160: =VLOOKUP(A160,Lookup!$A$2:$B$7,2,0) -> 0.15 | E160: 8 | F160: 1.2
A161: Lemons | B161: 2015-16 | C161: Fruit | D161: =VLOOKUP(A161,Lookup!$A$2:$B$7,2,0) -> 0.45 | E161: 7 | F161: 3.15
A162: Leeks | B162: 2015-16 | C162: Fruit | D162: =VLOOKUP(A162,Lookup!$A$2:$B$7,2,0) -> 0.15 | E162: 8 | F162: 1.2
A163: Potato | B163: 2015-16 | C163: Fruit | D163: =VLOOKUP(A163,Lookup!$A$2:$B$7,2,0) -> 0.12 | E163: 8 | F163: 0.96
A164: Lemons | B164: 2015-16 | C164: Fruit | D164: =VLOOKUP(A164,Lookup!$A$2:$B$7,2,0) -> 0.45 | E164: 14 | F164: 6.3
A165: Potato | B165: 2015-16 | C165: Fruit | D165: =VLOOKUP(A165,Lookup!$A$2:$B$7,2,0) -> 0.12 | E165: 12 | F165: 1.44
A166: Leeks | B166: 2015-16 | C166: Fruit | D166: =VLOOKUP(A166,Lookup!$A$2:$B$7,2,0) -> 0.15 | E166: 5 | F166: 0.75
A167: Lemons | B167: 2015-16 | C167: Fruit | D167: =VLOOKUP(A167,Lookup!$A$2:$B$7,2,0) -> 0.45 | E167: 12 | F167: 5.4
A168: Leeks | B168: 2015-16 | C168: Fruit | D168: =VLOOKUP(A168,Lookup!$A$2:$B$7,2,0) -> 0.15 | E168: 5 | F168: 0.75
A169: Potato | B169: 2015-16 | C169: Fruit | D169: =VLOOKUP(A169,Lookup!$A$2:$B$7,2,0) -> 0.12 | E169: 7 | F169: 0.84
A170: Lemons | B170: 2015-16 | C170: Fruit | D170: =VLOOKUP(A170,Lookup!$A$2:$B$7,2,0) -> 0.45 | E170: 8 | F170: 3.6
A171: Potato | B171: 2015-16 | C171: Fruit | D171: =VLOOKUP(A171,Lookup!$A$2:$B$7,2,0) -> 0.12 | E171: 7 | F171: 0.84
A172: Leeks | B172: 2015-16 | C172: Fruit | D172: =VLOOKUP(A172,Lookup!$A$2:$B$7,2,0) -> 0.15 | E172: 13 | F172: 1.95
A173: Lemons | B173: 2015-16 | C173: Fruit | D173: =VLOOKUP(A173,Lookup!$A$2:$B$7,2,0) -> 0.45 | E173: 9 | F173: 4.05
A174: Leeks | B174: 2015-16 | C174: Fruit | D174: =VLOOKUP(A174,Lookup!$A$2:$B$7,2,0) -> 0.15 | E174: 13 | F174: 1.95
A175: Potato | B175: 2015-16 | C175: Fruit | D175: =VLOOKUP(A175,Lookup!$A$2:$B$7,2,0) -> 0.12 | E175: 12 | F175: 1.44
A176: Lemons | B176: 2015-16 | C176: Fruit | D176: =VLOOKUP(A176,Lookup!$A$2:$B$7,2,0) -> 0.45 | E176: 13 | F176: 5.85
A177: Potato | B177: 2015-16 | C177: Fruit | D177: =VLOOKUP(A177,Lookup!$A$2:$B$7,2,0) -> 0.12 | E177: 10 | F177: 1.2
A178: Leeks | B178: 2015-16 | C178: Fruit | D178: =VLOOKUP(A178,Lookup!$A$2:$B$7,2,0) -> 0.15 | E178: 5 | F178: 0.75
A179: Lemons | B179: 2015-16 | C179: Fruit | D179: =VLOOKUP(A179,Lookup!$A$2:$B$7,2,0) -> 0.45 | E179: 12 | F179: 5.4
A180: Leeks | B180: 2015-16 | C180: Fruit | D180: =VLOOKUP(A180,Lookup!$A$2:$B$7,2,0) -> 0.15 | E180: 5 | F180: 0.75
A181: Potato | B181: 2015-16 | C181: Fruit | D181: =VLOOKUP(A181,Lookup!$A$2:$B$7,2,0) -> 0.12 | E181: 9 | F181: 1.08
A182: Lemons | B182: 2015-16 | C182: Fruit | D182: =VLOOKUP(A182,Lookup!$A$2:$B$7,2,0) -> 0.45 | E182: 8 | F182: 3.6
A183: Potato | B183: 2015-16 | C183: Fruit | D183: =VLOOKUP(A183,Lookup!$A$2:$B$7,2,0) -> 0.12 | E183: 7 | F183: 0.84
A184: Leeks | B184: 2015-16 | C184: Fruit | D184: =VLOOKUP(A184,Lookup!$A$2:$B$7,2,0) -> 0.15 | E184: 5 | F184: 0.75
A185: Lemons | B185: 2015-16 | C185: Fruit | D185: =VLOOKUP(A185,Lookup!$A$2:$B$7,2,0) -> 0.45 | E185: 10 | F185: 4.5
A186: Leeks | B186: 2015-16 | C186: Fruit | D186: =VLOOKUP(A186,Lookup!$A$2:$B$7,2,0) -> 0.15 | E186: 7 | F186: 1.05
A187: Potato | B187: 2015-16 | C187: Fruit | D187: =VLOOKUP(A187,Lookup!$A$2:$B$7,2,0) -> 0.12 | E187: 15 | F187: 1.8
A188: Lemons | B188: 2015-16 | C188: Fruit | D188: =VLOOKUP(A188,Lookup!$A$2:$B$7,2,0) -> 0.45 | E188: 5 | F188: 2.25
A189: Potato | B189: 2015-16 | C189: Fruit | D189: =VLOOKUP(A189,Lookup!$A$2:$B$7,2,0) -> 0.12 | E189: 15 | F189: 1.8
A190: Leeks | B190: 2015-16 | C190: Fruit | D190: =VLOOKUP(A190,Lookup!$A$2:$B$7,2,0) -> 0.15 | E190: 7 | F190: 1.05
A191: Lemons | B191: 2015-16 | C191: Fruit | D191: =VLOOKUP(A191,Lookup!$A$2:$B$7,2,0) -> 0.45 | E191: 12 | F191: 5.4
A192: Leeks | B192: 2015-16 | C192: Fruit | D192: =VLOOKUP(A192,Lookup!$A$2:$B$7,2,0) -> 0.15 | E192: 13 | F192: 1.95
A193: Potato | B193: 2015-16 | C193: Fruit | D193: =VLOOKUP(A193,Lookup!$A$2:$B$7,2,0) -> 0.12 | E193: 12 | F193: 1.44
A194: Lemons | B194: 2015-16 | C194: Fruit | D194: =VLOOKUP(A194,Lookup!$A$2:$B$7,2,0) -> 0.45 | E194: 10 | F194: 4.5
A195: Potato | B195: 2015-16 | C195: Fruit | D195: =VLOOKUP(A195,Lookup!$A$2:$B$7,2,0) -> 0.12 | E195: 6 | F195: =E195*D195 -> 0.72
A196: Leeks | B196: 2015-16 | C196: Fruit | D196: =VLOOKUP(A196,Lookup!$A$2:$B$7,2,0) -> 0.15 | E196: 7 | F196: 1.05
A197: Lemons | B197: 2015-16 | C197: Fruit | D197: =VLOOKUP(A197,Lookup!$A$2:$B$7,2,0) -> 0.45 | E197: 4 | F197: 1.8
A198: Leeks | B198: 2015-16 | C198: Fruit | D198: =VLOOKUP(A198,Lookup!$A$2:$B$7,2,0) -> 0.15 | E198: 5 | F198: 0.75
A199: Potato | B199: 2015-16 | C199: Fruit | D199: =VLOOKUP(A199,Lookup!$A$2:$B$7,2,0) -> 0.12 | E199: 9 | F199: 1.08
A200: Lemons | B200: 2015-16 | C200: Fruit | D200: =VLOOKUP(A200,Lookup!$A$2:$B$7,2,0) -> 0.45 | E200: 12 | F200: 5.4
... 53 more rows
